[Event "Titled Tuesday Blitz August 31 2021"]
[White "Murzin, Volodar"]
[Black "Zubov, Alexander"]
[WhiteFideId "44155573"]
[BlackFideId "14109409"]
[WhiteElo "2541"]
[BlackElo "2740"]
[Result "1-0"]
[Round "08"]
[TimeControl "180+1"]
[Date "2021.08.31"]
[WhiteClock "0:00:15"]
[BlackClock "0:00:01"]

1. d4 {[%clk 0:03:00]}  Nf6 {[%clk 0:02:59]} 2. Nf3 {[%clk 0:03:00]}  g6 {[%clk 0:02:59]} 3. Bg5 {[%clk 0:03:00]}  Bg7 {[%clk 0:02:59]} 4. Nbd2 {[%clk 0:02:59]}  d6 {[%clk 0:02:57]} 5. c3 {[%clk 0:02:58]}  h6 {[%clk 0:02:56]} 6. Bh4 {[%clk 0:02:56]}  g5 {[%clk 0:02:56]} 7. Bg3 {[%clk 0:02:55]}  Nh5 {[%clk 0:02:57]} 8. e4 {[%clk 0:02:53]}  Nd7 {[%clk 0:02:57]} 9. Bc4 {[%clk 0:02:51]}  e6 {[%clk 0:02:54]} 10. Qe2 {[%clk 0:02:47]}  Qe7 {[%clk 0:02:49]} 11. O-O-O {[%clk 0:02:40]}  a6 {[%clk 0:02:46]} 12. h4 {[%clk 0:02:33]}  Nxg3 {[%clk 0:02:44]} 13. fxg3 {[%clk 0:02:32]}  g4 {[%clk 0:02:45]} 14. Nh2 {[%clk 0:02:27]}  h5 {[%clk 0:02:45]} 15. Nhf1 {[%clk 0:02:25]}  b5 {[%clk 0:02:45]} 16. Bb3 {[%clk 0:02:22]}  c5 {[%clk 0:02:45]} 17. e5 {[%clk 0:02:04]}  dxe5 {[%clk 0:02:33]} 18. d5 {[%clk 0:02:03]}  c4 {[%clk 0:02:05]} 19. dxe6 {[%clk 0:02:01]}  cxb3 {[%clk 0:01:48]} 20. exd7+ {[%clk 0:02:02]}  Bxd7 {[%clk 0:01:49]} 21. axb3 {[%clk 0:02:03]}  b4 {[%clk 0:01:34]} 22. c4 {[%clk 0:01:56]}  f5 {[%clk 0:01:27]} 23. Ne3 {[%clk 0:01:56]}  O-O {[%clk 0:01:22]} 24. Rhf1 {[%clk 0:01:47]}  Be6 {[%clk 0:01:17]} 25. Rf2 {[%clk 0:01:28]}  a5 {[%clk 0:01:13]} 26. Rdf1 {[%clk 0:01:26]}  Qd7 {[%clk 0:01:13]} 27. Kb1 {[%clk 0:01:06]}  a4 {[%clk 0:01:12]} 28. bxa4 {[%clk 0:01:03]}  Rxa4 {[%clk 0:00:46]} 29. Nb3 {[%clk 0:01:01]}  Rc8 {[%clk 0:00:36]} 30. Rxf5 {[%clk 0:00:50]}  Bxf5+ {[%clk 0:00:33]} 31. Rxf5 {[%clk 0:00:51]}  e4 {[%clk 0:00:28]} 32. Rxh5 {[%clk 0:00:44]}  Qd3+ {[%clk 0:00:20]} 33. Qxd3 {[%clk 0:00:43]}  exd3 {[%clk 0:00:21]} 34. Rd5 {[%clk 0:00:43]}  Rf8 {[%clk 0:00:20]} 35. Rxd3 {[%clk 0:00:42]}  Rf2 {[%clk 0:00:20]} 36. Rd2 {[%clk 0:00:39]}  Rf7 {[%clk 0:00:16]} 37. Nxg4 {[%clk 0:00:36]}  Ra6 {[%clk 0:00:16]} 38. Ne3 {[%clk 0:00:31]}  Re6 {[%clk 0:00:16]} 39. Nd5 {[%clk 0:00:31]}  Re1+ {[%clk 0:00:15]} 40. Kc2 {[%clk 0:00:29]}  Be5 {[%clk 0:00:13]} 41. Nxb4 {[%clk 0:00:23]}  Bxg3 {[%clk 0:00:13]} 42. Nd5 {[%clk 0:00:23]}  Bxh4 {[%clk 0:00:13]} 43. c5 {[%clk 0:00:23]}  Bg5 {[%clk 0:00:13]} 44. Rd4 {[%clk 0:00:19]}  Re2+ {[%clk 0:00:13]} 45. Kc3 {[%clk 0:00:19]}  Rxg2 {[%clk 0:00:12]} 46. c6 {[%clk 0:00:20]}  Bd8 {[%clk 0:00:05]} 47. Nc5 {[%clk 0:00:17]}  Rg3+ {[%clk 0:00:04]} 48. Kc4 {[%clk 0:00:17]}  Rf2 {[%clk 0:00:03]} 49. b4 {[%clk 0:00:16]}  Rc2+ {[%clk 0:00:02]} 50. Kb5 {[%clk 0:00:16]}  Rg7 {[%clk 0:00:01]} 51. Ne6 {[%clk 0:00:15]} 1-0


[Site "https://www.chess.com"]

[Event "Titled Tuesday Blitz August 31 2021"]
[White "Nilsen, Tobias Lang"]
[Black "Perez Gormaz, Matias"]
[WhiteFideId "1521624"]
[BlackFideId "3406342"]
[WhiteElo "1975"]
[BlackElo "2352"]
[Result "0-1"]
[Round "08"]
[TimeControl "180+1"]
[Date "2021.08.31"]
[WhiteClock "0:00:02"]
[BlackClock "0:00:02"]

1. e4 {[%clk 0:03:00]}  c5 {[%clk 0:03:00]} 2. Nf3 {[%clk 0:03:00]}  d6 {[%clk 0:02:54]} 3. d4 {[%clk 0:03:00]}  cxd4 {[%clk 0:02:55]} 4. Qxd4 {[%clk 0:03:01]}  Nf6 {[%clk 0:02:56]} 5. Nc3 {[%clk 0:03:00]}  Nc6 {[%clk 0:02:56]} 6. Bb5 {[%clk 0:03:01]}  Bd7 {[%clk 0:02:56]} 7. Bxc6 {[%clk 0:03:01]}  Bxc6 {[%clk 0:02:57]} 8. Bg5 {[%clk 0:03:02]}  e6 {[%clk 0:02:57]} 9. O-O-O {[%clk 0:03:02]}  Be7 {[%clk 0:02:57]} 10. Qd3 {[%clk 0:03:03]}  O-O {[%clk 0:02:46]} 11. Nd4 {[%clk 0:03:01]}  Qa5 {[%clk 0:02:46]} 12. f4 {[%clk 0:03:00]}  Rfc8 {[%clk 0:02:43]} 13. g4 {[%clk 0:02:58]}  Be8 {[%clk 0:02:36]} 14. Bxf6 {[%clk 0:02:57]}  Bxf6 {[%clk 0:02:36]} 15. g5 {[%clk 0:02:58]}  Be7 {[%clk 0:02:36]} 16. h4 {[%clk 0:02:57]}  b5 {[%clk 0:02:33]} 17. Kb1 {[%clk 0:02:55]}  b4 {[%clk 0:02:32]} 18. Nce2 {[%clk 0:02:55]}  Rab8 {[%clk 0:02:30]} 19. f5 {[%clk 0:02:55]}  e5 {[%clk 0:02:28]} 20. Nb3 {[%clk 0:02:55]}  Qc7 {[%clk 0:02:22]} 21. f6 {[%clk 0:02:47]}  Bf8 {[%clk 0:02:04]} 22. g6 {[%clk 0:02:47]}  fxg6 {[%clk 0:02:00]} 23. fxg7 {[%clk 0:02:45]}  Bxg7 {[%clk 0:01:55]} 24. h5 {[%clk 0:02:46]}  a5 {[%clk 0:01:47]} 25. hxg6 {[%clk 0:02:42]}  hxg6 {[%clk 0:01:44]} 26. Nbc1 {[%clk 0:01:42]}  Bf7 {[%clk 0:01:19]} 27. Rdf1 {[%clk 0:01:22]}  a4 {[%clk 0:01:14]} 28. Qh3 {[%clk 0:01:22]}  Qxc2+ {[%clk 0:01:11]} 29. Ka1 {[%clk 0:01:21]}  Rc7 {[%clk 0:00:49]} 30. Qh7+ {[%clk 0:01:17]}  Kf8 {[%clk 0:00:46]} 31. Qxg6 {[%clk 0:01:17]}  Qxc1+ {[%clk 0:00:42]} 32. Nxc1 {[%clk 0:01:02]}  Rxc1+ {[%clk 0:00:43]} 33. Rxc1 {[%clk 0:01:00]}  Bxg6 {[%clk 0:00:43]} 34. Rcf1+ {[%clk 0:01:00]}  Kg8 {[%clk 0:00:40]} 35. Rh4 {[%clk 0:00:55]}  Rf8 {[%clk 0:00:23]} 36. Rg1 {[%clk 0:00:55]}  Rf6 {[%clk 0:00:23]} 37. a3 {[%clk 0:00:41]}  b3 {[%clk 0:00:20]} 38. Rhg4 {[%clk 0:00:39]}  Kf7 {[%clk 0:00:20]} 39. Kb1 {[%clk 0:00:39]}  d5 {[%clk 0:00:19]} 40. Ka1 {[%clk 0:00:38]}  dxe4 {[%clk 0:00:19]} 41. Rc1 {[%clk 0:00:35]}  e3 {[%clk 0:00:12]} 42. Rc7+ {[%clk 0:00:32]}  Kg8 {[%clk 0:00:12]} 43. Rc8+ {[%clk 0:00:31]}  Bf8 {[%clk 0:00:12]} 44. Rf4 {[%clk 0:00:06]}  e2 {[%clk 0:00:03]} 45. Rxf8+ {[%clk 0:00:05]}  Kg7 {[%clk 0:00:03]} 46. Rf7+ {[%clk 0:00:02]}  Bxf7 {[%clk 0:00:03]} 47. Rg4+ {[%clk 0:00:02]}  Kf8 {[%clk 0:00:02]} 0-1


[Site "https://www.chess.com"]

[Event "Titled Tuesday Blitz August 31 2021"]
[White "Ovchinnikov, Vsevolod"]
[Black "Maksimovic, Bojan"]
[WhiteFideId "24176842"]
[BlackFideId "14408120"]
[WhiteElo "2529"]
[BlackElo "2709"]
[Result "0-1"]
[Round "08"]
[TimeControl "180+1"]
[Date "2021.08.31"]
[WhiteClock "0:00:05"]
[BlackClock "0:00:14"]

1. d4 {[%clk 0:03:00]}  Nf6 {[%clk 0:02:59]} 2. c4 {[%clk 0:03:01]}  a6 {[%clk 0:03:00]} 3. Nc3 {[%clk 0:03:00]}  c5 {[%clk 0:03:00]} 4. d5 {[%clk 0:03:00]}  b5 {[%clk 0:03:01]} 5. cxb5 {[%clk 0:03:00]}  axb5 {[%clk 0:03:01]} 6. Nxb5 {[%clk 0:03:01]}  d6 {[%clk 0:03:01]} 7. Nf3 {[%clk 0:02:59]}  g6 {[%clk 0:03:01]} 8. g3 {[%clk 0:02:55]}  Bg7 {[%clk 0:02:59]} 9. Nc3 {[%clk 0:02:52]}  O-O {[%clk 0:02:53]} 10. Bg2 {[%clk 0:02:53]}  Nfd7 {[%clk 0:02:53]} 11. O-O {[%clk 0:02:53]}  Nb6 {[%clk 0:02:53]} 12. Qc2 {[%clk 0:02:45]}  N8d7 {[%clk 0:02:50]} 13. e4 {[%clk 0:02:41]}  Ba6 {[%clk 0:02:49]} 14. Rd1 {[%clk 0:02:35]}  Nc4 {[%clk 0:02:47]} 15. Nd2 {[%clk 0:02:21]}  Nce5 {[%clk 0:02:41]} 16. Nf1 {[%clk 0:02:19]}  Qa5 {[%clk 0:02:35]} 17. Ne3 {[%clk 0:02:12]}  Rfb8 {[%clk 0:02:30]} 18. Bf1 {[%clk 0:01:26]}  Nf3+ {[%clk 0:02:24]} 19. Kg2 {[%clk 0:01:21]}  Nd4 {[%clk 0:02:25]} 20. Qd2 {[%clk 0:01:21]}  Ne5 {[%clk 0:02:17]} 21. Bxa6 {[%clk 0:01:21]}  Qxa6 {[%clk 0:02:17]} 22. f4 {[%clk 0:01:11]}  Nc4 {[%clk 0:01:13]} 23. Qf2 {[%clk 0:00:59]}  Na5 {[%clk 0:00:51]} 24. Rb1 {[%clk 0:00:51]}  Nc4 {[%clk 0:00:43]} 25. Qf1 {[%clk 0:00:31]}  Nxe3+ {[%clk 0:00:38]} 26. Bxe3 {[%clk 0:00:32]}  Qxf1+ {[%clk 0:00:38]} 27. Kxf1 {[%clk 0:00:33]}  Nc2 {[%clk 0:00:39]} 28. Bd2 {[%clk 0:00:30]}  Bxc3 {[%clk 0:00:32]} 29. bxc3 {[%clk 0:00:26]}  Rxb1 {[%clk 0:00:23]} 30. Rxb1 {[%clk 0:00:27]}  Rxa2 {[%clk 0:00:23]} 31. Rb7 {[%clk 0:00:24]}  Na3 {[%clk 0:00:20]} 32. Be1 {[%clk 0:00:18]}  Nc4 {[%clk 0:00:14]} 33. Bf2 {[%clk 0:00:05]}  Nd2+ {[%clk 0:00:13]} 34. Kg1 {[%clk 0:00:05]}  Nxe4 {[%clk 0:00:14]} 35. Be3 {[%clk 0:00:05]}  Re2 {[%clk 0:00:14]} 0-1


[Site "https://www.chess.com"]

[Event "Titled Tuesday Blitz August 31 2021"]
[White "Palchuk, Andrii"]
[Black "Polivanov, Anatoliy"]
[WhiteFideId "14176688"]
[BlackFideId "14109468"]
[WhiteElo "2320"]
[BlackElo "2472"]
[Result "0-1"]
[Round "08"]
[TimeControl "180+1"]
[Date "2021.08.31"]
[WhiteClock "0:00:07"]
[BlackClock "0:00:13"]

1. e4 {[%clk 0:03:00]}  c5 {[%clk 0:02:59]} 2. Nf3 {[%clk 0:03:00]}  g6 {[%clk 0:02:59]} 3. d4 {[%clk 0:03:01]}  cxd4 {[%clk 0:02:59]} 4. Nxd4 {[%clk 0:03:01]}  Bg7 {[%clk 0:02:59]} 5. Be3 {[%clk 0:03:02]}  Nf6 {[%clk 0:02:56]} 6. Nc3 {[%clk 0:03:02]}  Nc6 {[%clk 0:02:56]} 7. f3 {[%clk 0:03:01]}  O-O {[%clk 0:02:55]} 8. Bc4 {[%clk 0:03:01]}  Qb6 {[%clk 0:02:51]} 9. Bb3 {[%clk 0:03:01]}  Nxe4 {[%clk 0:02:48]} 10. Nd5 {[%clk 0:03:01]}  Qa5+ {[%clk 0:02:40]} 11. c3 {[%clk 0:03:02]}  Nxd4 {[%clk 0:02:38]} 12. Bxd4 {[%clk 0:02:43]}  e5 {[%clk 0:02:03]} 13. Be3 {[%clk 0:01:47]}  Nc5 {[%clk 0:02:02]} 14. Bc2 {[%clk 0:01:46]}  Ne6 {[%clk 0:02:01]} 15. O-O {[%clk 0:01:44]}  Kh8 {[%clk 0:01:51]} 16. h4 {[%clk 0:01:42]}  Nd4 {[%clk 0:01:47]} 17. Nb4 {[%clk 0:01:19]}  Nxc2 {[%clk 0:01:45]} 18. Nxc2 {[%clk 0:01:19]}  d5 {[%clk 0:01:42]} 19. h5 {[%clk 0:01:19]}  Bf5 {[%clk 0:01:41]} 20. hxg6 {[%clk 0:01:10]}  fxg6 {[%clk 0:01:41]} 21. Qd2 {[%clk 0:01:07]}  Rad8 {[%clk 0:01:36]} 22. Bg5 {[%clk 0:00:57]}  Qb6+ {[%clk 0:01:29]} 23. Kh2 {[%clk 0:00:57]}  Qxb2 {[%clk 0:01:19]} 24. Bxd8 {[%clk 0:00:50]}  Qxc2 {[%clk 0:01:16]} 25. Qg5 {[%clk 0:00:30]}  Qxc3 {[%clk 0:00:43]} 26. Rac1 {[%clk 0:00:31]}  Qb2 {[%clk 0:00:36]} 27. Rc7 {[%clk 0:00:28]}  e4 {[%clk 0:00:34]} 28. Kh1 {[%clk 0:00:18]}  exf3 {[%clk 0:00:31]} 29. gxf3 {[%clk 0:00:18]}  Bh3 {[%clk 0:00:24]} 30. Re1 {[%clk 0:00:07]}  Qf2 {[%clk 0:00:13]} 0-1


[Site "https://www.chess.com"]

[Event "Titled Tuesday Blitz August 31 2021"]
[White "Papasimakopoulos, Alexandros"]
[Black "Khusnutdinov, Rustam"]
[WhiteFideId "4244125"]
[BlackFideId "13701703"]
[WhiteElo "2352"]
[BlackElo "2571"]
[Result "1/2-1/2"]
[Round "08"]
[TimeControl "180+1"]
[Date "2021.08.31"]
[WhiteClock "0:00:23"]
[BlackClock "0:00:20"]

1. d4 {[%clk 0:02:45]}  d5 {[%clk 0:02:59]} 2. c4 {[%clk 0:02:45]}  e6 {[%clk 0:02:59]} 3. Nc3 {[%clk 0:02:43]}  Nf6 {[%clk 0:02:59]} 4. cxd5 {[%clk 0:02:43]}  exd5 {[%clk 0:03:00]} 5. Bg5 {[%clk 0:02:43]}  Be7 {[%clk 0:03:01]} 6. e3 {[%clk 0:02:43]}  c6 {[%clk 0:03:01]} 7. Bd3 {[%clk 0:02:44]}  Nbd7 {[%clk 0:03:01]} 8. Qc2 {[%clk 0:02:44]}  Nh5 {[%clk 0:03:01]} 9. Bxe7 {[%clk 0:02:44]}  Qxe7 {[%clk 0:03:02]} 10. O-O-O {[%clk 0:02:42]}  g6 {[%clk 0:02:59]} 11. h3 {[%clk 0:02:40]}  Ng7 {[%clk 0:02:57]} 12. Nf3 {[%clk 0:02:40]}  Nb6 {[%clk 0:02:57]} 13. g4 {[%clk 0:02:38]}  h5 {[%clk 0:02:56]} 14. Ne5 {[%clk 0:02:34]}  Be6 {[%clk 0:02:52]} 15. Na4 {[%clk 0:02:31]}  O-O-O {[%clk 0:02:33]} 16. Nc5 {[%clk 0:02:21]}  g5 {[%clk 0:02:28]} 17. Ba6 {[%clk 0:02:12]}  bxa6 {[%clk 0:02:21]} 18. Nxc6 {[%clk 0:02:12]}  Qf6 {[%clk 0:02:02]} 19. Nxa7+ {[%clk 0:01:58]}  Kb8 {[%clk 0:02:02]} 20. Nc6+ {[%clk 0:01:58]}  Ka8 {[%clk 0:01:55]} 21. Qb3 {[%clk 0:01:43]}  Rb8 {[%clk 0:01:50]} 22. Nxa6 {[%clk 0:01:39]}  Bd7 {[%clk 0:01:22]} 23. Naxb8 {[%clk 0:01:34]}  Rxb8 {[%clk 0:01:23]} 24. Nxb8 {[%clk 0:01:25]}  Kxb8 {[%clk 0:01:24]} 25. Kb1 {[%clk 0:01:22]}  h4 {[%clk 0:01:22]} 26. f4 {[%clk 0:01:12]}  Kb7 {[%clk 0:01:17]} 27. Ka1 {[%clk 0:01:10]}  Ne6 {[%clk 0:01:13]} 28. Rhf1 {[%clk 0:01:04]}  Ba4 {[%clk 0:01:12]} 29. Qb4 {[%clk 0:00:54]}  Bxd1 {[%clk 0:01:12]} 30. Rxd1 {[%clk 0:00:55]}  gxf4 {[%clk 0:01:09]} 31. exf4 {[%clk 0:00:55]}  Qxf4 {[%clk 0:01:08]} 32. a4 {[%clk 0:00:52]}  Ka7 {[%clk 0:01:07]} 33. a5 {[%clk 0:00:37]}  Nc4 {[%clk 0:01:06]} 34. Qb5 {[%clk 0:00:33]}  Qf3 {[%clk 0:00:51]} 35. Rc1 {[%clk 0:00:26]}  Qe3 {[%clk 0:00:44]} 36. Rc3 {[%clk 0:00:25]}  Qd2 {[%clk 0:00:23]} 37. a6 {[%clk 0:00:22]}  Nd8 {[%clk 0:00:18]} 38. Ka2 {[%clk 0:00:16]}  Qxd4 {[%clk 0:00:18]} 39. Rb3 {[%clk 0:00:16]}  Nb6 {[%clk 0:00:18]} 40. Rc3 {[%clk 0:00:12]}  Qa4+ {[%clk 0:00:16]} 41. Qxa4 {[%clk 0:00:12]}  Nxa4 {[%clk 0:00:17]} 42. Rc7+ {[%clk 0:00:12]}  Kxa6 {[%clk 0:00:17]} 43. Rd7 {[%clk 0:00:13]}  Nc6 {[%clk 0:00:17]} 44. Rxf7 {[%clk 0:00:14]}  Nc5 {[%clk 0:00:15]} 45. Rh7 {[%clk 0:00:14]}  d4 {[%clk 0:00:15]} 46. Rxh4 {[%clk 0:00:14]}  d3 {[%clk 0:00:16]} 47. Rh5 {[%clk 0:00:14]}  d2 {[%clk 0:00:14]} 48. Rxc5 {[%clk 0:00:14]}  d1=Q {[%clk 0:00:14]} 49. Rxc6+ {[%clk 0:00:15]}  Kb5 {[%clk 0:00:14]} 50. Rc3 {[%clk 0:00:16]}  Qd4 {[%clk 0:00:14]} 51. Rb3+ {[%clk 0:00:15]}  Kc4 {[%clk 0:00:14]} 52. Rc3+ {[%clk 0:00:16]}  Kb4 {[%clk 0:00:14]} 53. Rb3+ {[%clk 0:00:16]}  Ka5 {[%clk 0:00:15]} 54. Ra3+ {[%clk 0:00:17]}  Kb5 {[%clk 0:00:15]} 55. Rb3+ {[%clk 0:00:18]}  Kc6 {[%clk 0:00:15]} 56. Rc3+ {[%clk 0:00:18]}  Kd5 {[%clk 0:00:15]} 57. Ka3 {[%clk 0:00:18]}  Qa7+ {[%clk 0:00:15]} 58. Kb3 {[%clk 0:00:19]}  Qh7 {[%clk 0:00:15]} 59. Ka2 {[%clk 0:00:19]}  Kd4 {[%clk 0:00:15]} 60. Kb3 {[%clk 0:00:19]}  Qb1 {[%clk 0:00:16]} 61. Ka3 {[%clk 0:00:19]}  Qa1+ {[%clk 0:00:16]} 62. Kb3 {[%clk 0:00:19]}  Qd1+ {[%clk 0:00:16]} 63. Ka3 {[%clk 0:00:19]}  Qf1 {[%clk 0:00:16]} 64. Ka2 {[%clk 0:00:20]}  Qa6+ {[%clk 0:00:17]} 65. Kb1 {[%clk 0:00:20]}  Qg6+ {[%clk 0:00:16]} 66. Ka1 {[%clk 0:00:20]}  Qa6+ {[%clk 0:00:16]} 67. Kb1 {[%clk 0:00:20]}  Qa4 {[%clk 0:00:17]} 68. Kc1 {[%clk 0:00:19]}  Qa1+ {[%clk 0:00:17]} 69. Kc2 {[%clk 0:00:20]}  Qe1 {[%clk 0:00:17]} 70. Rd3+ {[%clk 0:00:19]}  Kc4 {[%clk 0:00:16]} 71. Rc3+ {[%clk 0:00:20]}  Kd4 {[%clk 0:00:17]} 72. Rd3+ {[%clk 0:00:20]}  Ke4 {[%clk 0:00:18]} 73. Rc3 {[%clk 0:00:21]}  Qe2+ {[%clk 0:00:18]} 74. Kb3 {[%clk 0:00:21]}  Qb5+ {[%clk 0:00:18]} 75. Ka3 {[%clk 0:00:22]}  Kd4 {[%clk 0:00:18]} 76. Ka2 {[%clk 0:00:21]}  Qa4+ {[%clk 0:00:18]} 77. Kb1 {[%clk 0:00:22]}  Qd1+ {[%clk 0:00:19]} 78. Ka2 {[%clk 0:00:22]}  Qa4+ {[%clk 0:00:19]} 79. Kb1 {[%clk 0:00:23]}  Qd1+ {[%clk 0:00:20]} 80. Ka2 {[%clk 0:00:23]}  Qa4+ {[%clk 0:00:20]} 1/2-1/2


[Site "https://www.chess.com"]

[Event "Titled Tuesday Blitz August 31 2021"]
[White "Prraneeth Vuppala"]
[Black "Rodriguez Hernandez, Luis Daniel"]
[WhiteFideId "46622373"]
[BlackFideId "3506770"]
[WhiteElo "1759"]
[BlackElo "2133"]
[Result "0-1"]
[Round "08"]
[TimeControl "180+1"]
[Date "2021.08.31"]
[WhiteClock "0:00:01"]
[BlackClock "0:00:03"]

1. e4 {[%clk 0:02:59]}  e5 {[%clk 0:02:57]} 2. Nf3 {[%clk 0:02:59]}  Nc6 {[%clk 0:02:58]} 3. Bc4 {[%clk 0:02:55]}  Nf6 {[%clk 0:02:58]} 4. Ng5 {[%clk 0:02:54]}  d5 {[%clk 0:02:58]} 5. exd5 {[%clk 0:02:55]}  Nd4 {[%clk 0:02:59]} 6. d6 {[%clk 0:02:34]}  Qxd6 {[%clk 0:02:55]} 7. Nxf7 {[%clk 0:02:27]}  Qc6 {[%clk 0:02:55]} 8. O-O {[%clk 0:02:06]}  Qxc4 {[%clk 0:02:53]} 9. Nxh8 {[%clk 0:02:04]}  Nxc2 {[%clk 0:01:53]} 10. b3 {[%clk 0:01:52]}  Qc6 {[%clk 0:01:34]} 11. Bb2 {[%clk 0:01:44]}  Nxa1 {[%clk 0:01:35]} 12. Bxe5 {[%clk 0:01:37]}  Nc2 {[%clk 0:01:33]} 13. Bxf6 {[%clk 0:01:36]}  gxf6 {[%clk 0:01:20]} 14. Qh5+ {[%clk 0:01:28]}  Kd8 {[%clk 0:01:07]} 15. Nf7+ {[%clk 0:01:16]}  Ke7 {[%clk 0:01:07]} 16. Qxh7 {[%clk 0:01:12]}  Bf5 {[%clk 0:00:42]} 17. Qxf5 {[%clk 0:00:58]}  Kxf7 {[%clk 0:00:43]} 18. Nc3 {[%clk 0:00:31]}  Na3 {[%clk 0:00:15]} 19. Ne4 {[%clk 0:00:25]}  Bh6 {[%clk 0:00:08]} 20. f4 {[%clk 0:00:16]}  Rh8 {[%clk 0:00:06]} 21. Ng5+ {[%clk 0:00:13]}  Bxg5 {[%clk 0:00:05]} 22. fxg5 {[%clk 0:00:14]}  Nb5 {[%clk 0:00:04]} 23. gxf6 {[%clk 0:00:12]}  Nd6 {[%clk 0:00:03]} 24. Qg5 {[%clk 0:00:10]}  Rg8 {[%clk 0:00:03]} 25. Qh5+ {[%clk 0:00:10]}  Ke6 {[%clk 0:00:02]} 26. Re1+ {[%clk 0:00:08]}  Kd7 {[%clk 0:00:02]} 27. Qh3+ {[%clk 0:00:08]}  Kd8 {[%clk 0:00:02]} 28. g3 {[%clk 0:00:07]}  Qc5+ {[%clk 0:00:03]} 29. Kh1 {[%clk 0:00:07]}  Qd5+ {[%clk 0:00:03]} 30. Kg1 {[%clk 0:00:07]}  Qd4+ {[%clk 0:00:03]} 31. Kh1 {[%clk 0:00:07]}  Qxd2 {[%clk 0:00:03]} 32. Rf1 {[%clk 0:00:07]}  Qd5+ {[%clk 0:00:03]} 33. Kg1 {[%clk 0:00:07]}  Qd4+ {[%clk 0:00:03]} 34. Kh1 {[%clk 0:00:07]}  Rf8 {[%clk 0:00:03]} 35. Qh6 {[%clk 0:00:06]}  Qd5+ {[%clk 0:00:03]} 36. Kg1 {[%clk 0:00:06]}  Qc5+ {[%clk 0:00:04]} 37. Kh1 {[%clk 0:00:07]}  Qd5+ {[%clk 0:00:03]} 38. Kg1 {[%clk 0:00:07]}  Qf7 {[%clk 0:00:04]} 39. Qf4 {[%clk 0:00:06]}  Kc8 {[%clk 0:00:04]} 40. g4 {[%clk 0:00:06]}  Rg8 {[%clk 0:00:03]} 41. g5 {[%clk 0:00:06]}  Qh5 {[%clk 0:00:03]} 42. f7 {[%clk 0:00:04]}  Rxg5+ {[%clk 0:00:02]} 43. Kh1 {[%clk 0:00:04]}  Nxf7 {[%clk 0:00:02]} 44. Qxf7 {[%clk 0:00:03]}  Qxf7 {[%clk 0:00:02]} 45. Rxf7 {[%clk 0:00:04]}  b6 {[%clk 0:00:02]} 46. h4 {[%clk 0:00:02]}  Rg4 {[%clk 0:00:02]} 47. Rh7 {[%clk 0:00:02]}  Rd4 {[%clk 0:00:02]} 48. h5 {[%clk 0:00:02]}  Kb7 {[%clk 0:00:01]} 49. h6 {[%clk 0:00:01]}  a5 {[%clk 0:00:02]} 50. Rh8 {[%clk 0:00:01]}  b5 {[%clk 0:00:02]} 51. Kg2 {[%clk 0:00:01]}  Rh4 {[%clk 0:00:02]} 52. Kg3 {[%clk 0:00:01]}  Rh1 {[%clk 0:00:03]} 0-1


[Site "https://www.chess.com"]

[Event "Titled Tuesday Blitz August 31 2021"]
[White "Quirke, Jeffrey"]
[Black "Potapova, Margarita"]
[WhiteFideId "2013029"]
[BlackFideId "14126869"]
[WhiteElo "2325"]
[BlackElo "2214"]
[Result "0-1"]
[Round "08"]
[TimeControl "180+1"]
[Date "2021.08.31"]
[WhiteClock "0:01:10"]
[BlackClock "0:00:44"]

1. d4 {[%clk 0:03:00]}  Nf6 {[%clk 0:03:00]} 2. c4 {[%clk 0:03:00]}  c5 {[%clk 0:02:59]} 3. d5 {[%clk 0:03:00]}  b5 {[%clk 0:03:00]} 4. cxb5 {[%clk 0:03:01]}  a6 {[%clk 0:03:00]} 5. e3 {[%clk 0:03:01]}  g6 {[%clk 0:02:56]} 6. Nc3 {[%clk 0:02:59]}  Bg7 {[%clk 0:02:55]} 7. a4 {[%clk 0:03:00]}  axb5 {[%clk 0:02:53]} 8. Bxb5 {[%clk 0:02:58]}  O-O {[%clk 0:02:52]} 9. Nf3 {[%clk 0:02:58]}  d6 {[%clk 0:02:50]} 10. O-O {[%clk 0:02:56]}  Na6 {[%clk 0:02:51]} 11. e4 {[%clk 0:02:54]}  Nb4 {[%clk 0:02:47]} 12. Bg5 {[%clk 0:02:35]}  h6 {[%clk 0:02:40]} 13. Bh4 {[%clk 0:02:26]}  g5 {[%clk 0:02:41]} 14. Bg3 {[%clk 0:02:25]}  Nh5 {[%clk 0:02:41]} 15. Qd2 {[%clk 0:02:15]}  f5 {[%clk 0:02:35]} 16. exf5 {[%clk 0:02:07]}  Bxf5 {[%clk 0:02:35]} 17. h4 {[%clk 0:01:47]}  g4 {[%clk 0:02:21]} 18. Nh2 {[%clk 0:01:46]}  Nc2 {[%clk 0:02:12]} 19. Nxg4 {[%clk 0:01:34]}  Nxa1 {[%clk 0:01:41]} 20. Nxh6+ {[%clk 0:01:33]}  Kh8 {[%clk 0:01:18]} 21. Nxf5 {[%clk 0:01:32]}  Rxf5 {[%clk 0:01:18]} 22. Rxa1 {[%clk 0:01:28]}  Qf8 {[%clk 0:01:06]} 23. Re1 {[%clk 0:01:18]}  Bd4 {[%clk 0:00:52]} 24. Ne4 {[%clk 0:01:16]}  Nxg3 {[%clk 0:00:46]} 25. Nxg3 {[%clk 0:01:10]}  Rxf2 {[%clk 0:00:44]} 0-1


[Site "https://www.chess.com"]

[Event "Titled Tuesday Blitz August 31 2021"]
[White "Rakhmanov, Aleksandr"]
[Black "Iskusnyh, Sergei"]
[WhiteFideId "4173708"]
[BlackFideId "4120027"]
[WhiteElo "2498"]
[BlackElo "2492"]
[Result "1-0"]
[Round "08"]
[TimeControl "180+1"]
[Date "2021.08.31"]
[WhiteClock "0:00:53"]
[BlackClock "0:00:03"]

1. c4 {[%clk 0:02:57]}  c5 {[%clk 0:02:58]} 2. d4 {[%clk 0:02:57]}  cxd4 {[%clk 0:02:57]} 3. Nf3 {[%clk 0:02:57]}  Nc6 {[%clk 0:02:53]} 4. Nxd4 {[%clk 0:02:57]}  g6 {[%clk 0:02:53]} 5. Nxc6 {[%clk 0:02:56]}  bxc6 {[%clk 0:02:52]} 6. h4 {[%clk 0:02:57]}  Nf6 {[%clk 0:02:47]} 7. Nc3 {[%clk 0:02:56]}  Bg7 {[%clk 0:02:47]} 8. e4 {[%clk 0:02:57]}  Rb8 {[%clk 0:02:42]} 9. Be2 {[%clk 0:02:45]}  Qa5 {[%clk 0:02:34]} 10. Kf1 {[%clk 0:02:43]}  h5 {[%clk 0:02:28]} 11. Qc2 {[%clk 0:02:40]}  Qb4 {[%clk 0:02:10]} 12. Rb1 {[%clk 0:02:33]}  Ng4 {[%clk 0:01:53]} 13. Bd2 {[%clk 0:02:24]}  Qc5 {[%clk 0:01:47]} 14. Nd1 {[%clk 0:02:19]}  d6 {[%clk 0:01:35]} 15. b4 {[%clk 0:02:15]}  Qb6 {[%clk 0:01:23]} 16. f3 {[%clk 0:02:10]}  Ne5 {[%clk 0:01:15]} 17. Be3 {[%clk 0:02:00]}  Qc7 {[%clk 0:01:11]} 18. Nf2 {[%clk 0:01:52]}  a5 {[%clk 0:01:08]} 19. a3 {[%clk 0:01:49]}  axb4 {[%clk 0:01:07]} 20. axb4 {[%clk 0:01:50]}  O-O {[%clk 0:01:06]} 21. f4 {[%clk 0:01:42]}  Nd7 {[%clk 0:00:53]} 22. g4 {[%clk 0:01:37]}  hxg4 {[%clk 0:00:52]} 23. h5 {[%clk 0:01:34]}  Nf6 {[%clk 0:00:47]} 24. h6 {[%clk 0:01:29]}  Bh8 {[%clk 0:00:47]} 25. h7+ {[%clk 0:01:29]}  Nxh7 {[%clk 0:00:46]} 26. Nxg4 {[%clk 0:01:27]}  Bxg4 {[%clk 0:00:44]} 27. Bxg4 {[%clk 0:01:26]}  Bg7 {[%clk 0:00:44]} 28. Qh2 {[%clk 0:01:21]}  Nf6 {[%clk 0:00:44]} 29. e5 {[%clk 0:01:22]}  dxe5 {[%clk 0:00:34]} 30. fxe5 {[%clk 0:01:22]}  Rfd8 {[%clk 0:00:14]} 31. exf6 {[%clk 0:01:20]}  Qxh2 {[%clk 0:00:12]} 32. Rxh2 {[%clk 0:01:21]}  Bxf6 {[%clk 0:00:12]} 33. Rd2 {[%clk 0:01:17]}  Rxd2 {[%clk 0:00:10]} 34. Bxd2 {[%clk 0:01:17]}  Rd8 {[%clk 0:00:10]} 35. Be3 {[%clk 0:01:13]}  Rd3 {[%clk 0:00:10]} 36. Ke2 {[%clk 0:01:11]}  Rc3 {[%clk 0:00:10]} 37. c5 {[%clk 0:01:10]}  Rc4 {[%clk 0:00:10]} 38. Bd7 {[%clk 0:01:07]}  Bc3 {[%clk 0:00:03]} 39. Rc1 {[%clk 0:00:53]} 1-0


[Site "https://www.chess.com"]